[Event "Live Chess"]
[Site "Chess.com"]
[Date "2024.06.02"]
[Round "-"]
[White "Dhaydon19"]
[Black "WeakOldFinished"]
[Result "1/2-1/2"]
[WhiteElo "2628"]
[BlackElo "2174"]
[TimeControl "300"]
[EndTime "1:13:05 PDT"]
[Termination "Game drawn by agreement"]

1. d4 {[%clk 0:04:59]} 1... Nf6 {[%clk 0:04:57.4]} 2. Nf3 {[%clk 0:04:53.2]}
2... c5 {[%clk 0:04:55.6]} 3. c3 {[%clk 0:04:47.2]} 3... cxd4 {[%clk 0:04:51.7]}
4. cxd4 {[%clk 0:04:46.1]} 4... d5 {[%clk 0:04:50.5]} 5. g3 {[%clk 0:04:45.2]}
5... Nc6 {[%clk 0:04:48.8]} 6. Bg2 {[%clk 0:04:44.8]} 6... Bf5 {[%clk
0:04:44.7]} 7. Nc3 {[%clk 0:04:43.6]} 7... e6 {[%clk 0:04:43.7]} 8. O-O {[%clk
0:04:40.8]} 8... Be7 {[%clk 0:04:39.9]} 9. Bf4 {[%clk 0:04:39]} 9... O-O {[%clk
0:04:39]} 10. Rc1 {[%clk 0:04:27.6]} 10... Rc8 {[%clk 0:04:36.9]} 11. Ne5 {[%clk
0:04:25.6]} 11... Nxe5 {[%clk 0:04:33.3]} 12. Bxe5 {[%clk 0:04:25.5]} 12... Qb6
{[%clk 0:04:30.6]} 13. Qd2 {[%clk 0:04:21.2]} 13... h6 {[%clk 0:04:21.8]} 14. f3
{[%clk 0:04:18.3]} 14... Nd7 {[%clk 0:04:18.2]} 15. Bf4 {[%clk 0:04:17]} 15...
Rc4 {[%clk 0:04:09.5]} 16. Be3 {[%clk 0:04:12.2]} 16... Rfc8 {[%clk 0:04:08.7]}
17. b3 {[%clk 0:04:09.5]} 17... R4c7 {[%clk 0:04:06.8]} 18. Na4 {[%clk
0:04:05.4]} 18... Qb5 {[%clk 0:04:02.1]} 19. Rxc7 {[%clk 0:04:02.6]} 19... Rxc7
{[%clk 0:04:02]} 20. Nc3 {[%clk 0:03:52.8]} 20... Qa5 {[%clk 0:03:55.7]} 21.
Nxd5 {[%clk 0:03:35.8]} 21... Qxd5 {[%clk 0:03:52.2]} 22. Bf2 {[%clk 0:03:29.2]}
22... Qc6 {[%clk 0:03:45.5]} 23. e4 {[%clk 0:03:26.6]} 23... Bg6 {[%clk
0:03:44.6]} 24. Rd1 {[%clk 0:03:23.1]} 24... Qc2 {[%clk 0:03:43.4]} 25. h4
{[%clk 0:03:18.8]} 25... Qxd2 {[%clk 0:03:41.1]} 26. Rxd2 {[%clk 0:03:18.1]}
26... Bb4 {[%clk 0:03:39.6]} 27. Rd1 {[%clk 0:03:12.3]} 27... a6 {[%clk
0:03:35.6]} 28. Bf1 {[%clk 0:02:58.9]} 28... Rc2 {[%clk 0:03:32.7]} 29. a4
{[%clk 0:02:55.7]} 29... Rb2 {[%clk 0:03:28.2]} 30. Rd3 {[%clk 0:02:51.9]} 30...
f5 {[%clk 0:03:23.4]} 31. exf5 {[%clk 0:02:41.3]} 31... Bxf5 {[%clk 0:03:22.3]}
32. Re3 {[%clk 0:02:38.6]} 32... Bd2 {[%clk 0:03:19.1]} 33. Re2 {[%clk
0:02:37.1]} 33... Bc3 {[%clk 0:03:18]} 34. g4 {[%clk 0:02:32.1]} 34... Rxe2
{[%clk 0:03:16.3]} 35. Bxe2 {[%clk 0:02:30]} 35... Bc2 {[%clk 0:03:14.1]} 36.
Bc4 {[%clk 0:02:27.1]} 36... Kf7 {[%clk 0:03:13.7]} 37. d5 {[%clk 0:02:25.8]}
37... exd5 {[%clk 0:03:02.4]} 38. Bxd5+ {[%clk 0:02:24]} 38... Ke7 {[%clk
0:03:02]} 39. Bxb7 {[%clk 0:02:22.7]} 39... Bxb3 {[%clk 0:03:01.4]} 40. Bxa6
{[%clk 0:02:20.9]} 40... Bxa4 {[%clk 0:03:00.8]} 41. Kg2 {[%clk 0:02:18.2]}
41... Bc6 {[%clk 0:02:57.9]} 42. Be2 {[%clk 0:02:15.2]} 42... Be5 {[%clk
0:02:53.4]} 43. Be3 {[%clk 0:02:13.3]} 43... Kf6 {[%clk 0:02:49.3]} 44. Bd3
{[%clk 0:02:10.2]} 44... g5 {[%clk 0:02:47.8]} 45. h5 {[%clk 0:02:08]} 45... Bf4
{[%clk 0:02:46]} 46. Bd4+ {[%clk 0:02:04.6]} 46... Be5 {[%clk 0:02:45.3]} 47.
Bf2 {[%clk 0:02:02.6]} 47... Bc3 {[%clk 0:02:41.1]} 48. Be2 {[%clk 0:01:50.5]}
48... Ne5 {[%clk 0:02:37.7]} 49. Kg3 {[%clk 0:01:49.3]} 49... Bd2 {[%clk
0:02:36.5]} 50. Bd4 {[%clk 0:01:48]} 50... Bf4+ {[%clk 0:02:35.6]} 51. Kf2
{[%clk 0:01:47.2]} 51... Ke6 {[%clk 0:02:33.5]} 52. Bc3 {[%clk 0:01:44.2]} 52...
Bd5 {[%clk 0:02:28.9]} 53. Bb4 {[%clk 0:01:42.2]} 53... Kf7 {[%clk 0:02:16.1]}
54. Bc5 {[%clk 0:01:38]} 54... Bc4 {[%clk 0:02:11]} 55. Bd4 {[%clk 0:01:34.7]}
55... Bxe2 {[%clk 0:02:08.4]} 56. Kxe2 {[%clk 0:01:34.6]} 56... Ke6 {[%clk
0:02:06.9]} 57. Bc5 {[%clk 0:01:31.1]} 57... Kd5 {[%clk 0:02:05.9]} 58. Bf8
{[%clk 0:01:28.4]} 58... Nf7 {[%clk 0:02:05.4]} 59. Bb4 {[%clk 0:01:27]} 59...
Bd6 {[%clk 0:02:03.6]} 60. Bd2 {[%clk 0:01:25.8]} 60... Ne5 {[%clk 0:02:02.5]}
61. f4 {[%clk 0:01:21.2]} 61... gxf4 {[%clk 0:01:48.3]} 62. Bxf4 {[%clk
0:01:20.1]} 62... Nxg4 {[%clk 0:01:47.8]} 63. Kf3 {[%clk 0:01:18.5]} 63... Bxf4
{[%clk 0:01:42.8]} 64. Kxg4 {[%clk 0:01:17.3]} 64... Ke4 {[%clk 0:01:41.1]} 65.
Kh3 {[%clk 0:01:16.1]} 65... Kf3 {[%clk 0:01:39.5]} 66. Kh4 {[%clk 0:01:15.1]}
66... Bg3+ {[%clk 0:01:35.4]} 67. Kh3 {[%clk 0:01:15]} 67... Be1 {[%clk
0:01:33.8]} 68. Kh2 {[%clk 0:01:12.8]} 68... Bf2 {[%clk 0:01:32.8]} 69. Kh1
{[%clk 0:01:12]} 69... Kg4 {[%clk 0:01:30.9]} 70. Kh2 {[%clk 0:01:11.9]} 70...
Kxh5 {[%clk 0:01:30.1]} 71. Kg2 {[%clk 0:01:11.8]} 71... Ba7 {[%clk 0:01:28.2]}
72. Kh1 {[%clk 0:01:11.7]} 1/2-1/2

[Event "Live Chess"]
[Site "Chess.com"]
[Date "2024.06.02"]
[Round "-"]
[White "AlanBstard10"]
[Black "silunn"]
[Result "0-1"]
[WhiteElo "1196"]
[BlackElo "2139"]
[TimeControl "300"]
[EndTime "1:13:36 PDT"]
[Termination "silunn won by resignation"]

1. b4 {[%clk 0:04:56.7]} 1... e6 {[%clk 0:04:59.9]} 2. Bb2 {[%clk 0:04:55.9]}
2... Nf6 {[%clk 0:04:59.2]} 3. a3 {[%clk 0:04:54.5]} 3... Be7 {[%clk 0:04:57.5]}
4. e3 {[%clk 0:04:54]} 4... a5 {[%clk 0:04:55.1]} 5. Be2 {[%clk 0:04:53.5]} 5...
axb4 {[%clk 0:04:54]} 6. axb4 {[%clk 0:04:52.8]} 6... Rxa1 {[%clk 0:04:52.6]} 7.
Bxa1 {[%clk 0:04:51.9]} 7... Bxb4 {[%clk 0:04:50.6]} 8. Bc3 {[%clk 0:04:50]}
8... Bxc3 {[%clk 0:04:49.4]} 9. Nxc3 {[%clk 0:04:49.7]} 9... b6 {[%clk 0:04:48]}
10. Nf3 {[%clk 0:04:48.9]} 10... Bb7 {[%clk 0:04:47.3]} 11. O-O {[%clk
0:04:48.6]} 11... Nc6 {[%clk 0:04:45.9]} 12. d4 {[%clk 0:04:47.7]} 12... Ne7
{[%clk 0:04:44.4]} 13. Qd3 {[%clk 0:04:44.9]} 13... h6 {[%clk 0:04:39.7]} 14.
Ra1 {[%clk 0:04:44.4]} 14... O-O {[%clk 0:04:34.9]} 15. Ne5 {[%clk 0:04:41.4]}
15... d6 {[%clk 0:04:15.4]} 16. Nc4 {[%clk 0:04:37.5]} 16... Nfd5 {[%clk
0:04:02.4]} 17. Nxd5 {[%clk 0:04:35.8]} 17... Nxd5 {[%clk 0:03:58.1]} 18. f3
{[%clk 0:04:26.7]} 18... Qg5 {[%clk 0:03:40.7]} 19. Ra7 {[%clk 0:04:14.6]} 19...
Bc6 {[%clk 0:03:31.3]} 20. e4 {[%clk 0:04:06.7]} 20... Nf4 {[%clk 0:03:29.3]}
0-1

[Event "Live Chess"]
[Site "Chess.com"]
[Date "2024.06.02"]
[Round "-"]
[White "ProfPoisson"]
[Black "vincents82"]
[Result "0-1"]
[WhiteElo "1348"]
[BlackElo "2010"]
[TimeControl "300"]
[EndTime "1:13:38 PDT"]
[Termination "vincents82 won by checkmate"]

1. e4 {[%clk 0:04:55]} 1... d5 {[%clk 0:04:58.8]} 2. exd5 {[%clk 0:04:52.7]}
2... Qxd5 {[%clk 0:04:55.9]} 3. Nc3 {[%clk 0:04:52.2]} 3... Qd8 {[%clk
0:04:54.9]} 4. d4 {[%clk 0:04:49.7]} 4... Nf6 {[%clk 0:04:52.7]} 5. Nf3 {[%clk
0:04:47.9]} 5... Bg4 {[%clk 0:04:51.3]} 6. Be2 {[%clk 0:04:45.3]} 6... e6 {[%clk
0:04:50]} 7. O-O {[%clk 0:04:35]} 7... c6 {[%clk 0:04:48.7]} 8. Ne5 {[%clk
0:04:26.6]} 8... Bxe2 {[%clk 0:04:47.1]} 9. Nxe2 {[%clk 0:04:21.2]} 9... Nbd7
{[%clk 0:04:45.9]} 10. f4 {[%clk 0:04:10.4]} 10... c5 {[%clk 0:04:29.3]} 11. c3
{[%clk 0:04:02.4]} 11... cxd4 {[%clk 0:04:26.6]} 12. cxd4 {[%clk 0:04:00.6]}
12... Be7 {[%clk 0:04:24.6]} 13. Qe1 {[%clk 0:03:46.1]} 13... O-O {[%clk
0:04:19]} 14. Rf3 {[%clk 0:03:39.9]} 14... Nxe5 {[%clk 0:04:16.7]} 15. dxe5
{[%clk 0:03:31.8]} 15... Ne4 {[%clk 0:04:04]} 16. Be3 {[%clk 0:03:18.4]} 16...
Bc5 {[%clk 0:03:52.4]} 17. Bxc5 {[%clk 0:03:12.5]} 17... Nxc5 {[%clk 0:03:51.4]}
18. Rh3 {[%clk 0:03:10.8]} 18... Ne4 {[%clk 0:03:46.5]} 19. Rd1 {[%clk
0:03:03.3]} 19... Qb6+ {[%clk 0:03:44.4]} 20. Kf1 {[%clk 0:02:54.7]} 20... Rad8
{[%clk 0:03:35.9]} 21. Nc3 {[%clk 0:02:32.1]} 21... Rxd1 {[%clk 0:03:26.2]} 22.
Nxd1 {[%clk 0:02:29.5]} 22... Rd8 {[%clk 0:03:20]} 23. Nc3 {[%clk 0:02:06.3]}
23... Nd2+ {[%clk 0:03:02.3]} 24. Ke2 {[%clk 0:01:37.6]} 24... Qd4 {[%clk
0:02:49.3]} 25. Re3 {[%clk 0:01:15.8]} 25... Qc4+ {[%clk 0:02:29]} 26. Kf2
{[%clk 0:01:10.5]} 26... Qxf4+ {[%clk 0:02:26.7]} 27. Kg1 {[%clk 0:01:06.4]}
27... Qd4 {[%clk 0:02:24]} 28. Kh1 {[%clk 0:00:53.7]} 28... Nc4 {[%clk
0:02:18.7]} 29. Re4 {[%clk 0:00:49.3]} 29... Qd3 {[%clk 0:02:17.9]} 30. Re2
{[%clk 0:00:36.2]} 30... Qf5 {[%clk 0:01:56.4]} 31. h4 {[%clk 0:00:34.5]} 31...
a6 {[%clk 0:01:47.6]} 32. Rf2 {[%clk 0:00:32.2]} 32... Qxe5 {[%clk 0:01:43.6]}
33. Qxe5 {[%clk 0:00:29.4]} 33... Nxe5 {[%clk 0:01:42.6]} 34. Re2 {[%clk
0:00:24.5]} 34... Ng4 {[%clk 0:01:38.5]} 35. g3 {[%clk 0:00:23]} 35... h5 {[%clk
0:01:37.2]} 36. Ne4 {[%clk 0:00:21]} 36... Kf8 {[%clk 0:01:34.1]} 37. Nc5 {[%clk
0:00:19.1]} 37... Ke7 {[%clk 0:01:27.2]} 38. Nxb7 {[%clk 0:00:17.8]} 38... Rd1+
{[%clk 0:01:22.8]} 39. Kg2 {[%clk 0:00:15.3]} 39... Rd3 {[%clk 0:01:16.3]} 40.
Nc5 {[%clk 0:00:13.4]} 40... Rd5 {[%clk 0:01:14.1]} 41. Nxa6 {[%clk 0:00:12]}
41... Ra5 {[%clk 0:01:13.3]} 42. Nc7 {[%clk 0:00:10.4]} 42... Rxa2 {[%clk
0:01:10.6]} 43. b4 {[%clk 0:00:09.1]} 43... Rxe2+ {[%clk 0:01:08.9]} 44. Kf3
{[%clk 0:00:06.4]} 44... Rb2 {[%clk 0:01:05.5]} 45. b5 {[%clk 0:00:06.3]} 45...
f5 {[%clk 0:01:04.7]} 46. b6 {[%clk 0:00:05.8]} 46... Rf2# {[%clk 0:01:03.5]}
0-1

[Event "Live Chess"]
[Site "Chess.com"]
[Date "2024.06.02"]
[Round "-"]
[White "KeithArkell"]
[Black "NAZRIZ1977"]
[Result "1-0"]
[WhiteElo "2397"]
[BlackElo "2136"]
[TimeControl "300"]
[EndTime "1:13:38 PDT"]
[Termination "KeithArkell won by resignation"]

1. d4 {[%clk 0:04:56.1]} 1... Nf6 {[%clk 0:04:58.8]} 2. Nf3 {[%clk 0:04:53.4]}
2... c5 {[%clk 0:04:57]} 3. c3 {[%clk 0:04:52.2]} 3... g6 {[%clk 0:04:53.2]} 4.
Bg5 {[%clk 0:04:48.6]} 4... Bg7 {[%clk 0:04:52.1]} 5. Nbd2 {[%clk 0:04:47.9]}
5... d5 {[%clk 0:04:50.5]} 6. e3 {[%clk 0:04:46.9]} 6... O-O {[%clk 0:04:49.6]}
7. Bxf6 {[%clk 0:04:46.4]} 7... Bxf6 {[%clk 0:04:48.4]} 8. dxc5 {[%clk 0:04:46]}
8... a5 {[%clk 0:04:45]} 9. Be2 {[%clk 0:04:42.7]} 9... Qc7 {[%clk 0:04:38]} 10.
O-O {[%clk 0:04:39.2]} 10... Qxc5 {[%clk 0:04:33.9]} 11. e4 {[%clk 0:04:38.7]}
11... Nc6 {[%clk 0:04:21.6]} 12. exd5 {[%clk 0:04:37.2]} 12... Qxd5 {[%clk
0:04:20.7]} 13. Nc4 {[%clk 0:04:36.2]} 13... Qxd1 {[%clk 0:04:17.1]} 14. Rfxd1
{[%clk 0:04:36.1]} 14... Bf5 {[%clk 0:04:11.1]} 15. a4 {[%clk 0:04:24]} 15...
Rad8 {[%clk 0:04:06.5]} 16. h3 {[%clk 0:04:21.9]} 16... h5 {[%clk 0:04:04.8]}
17. Ne3 {[%clk 0:04:12.3]} 17... Bc8 {[%clk 0:03:43.4]} 18. Nd2 {[%clk
0:04:05.7]} 18... Kg7 {[%clk 0:03:30.8]} 19. Ndc4 {[%clk 0:04:04.6]} 19... Be6
{[%clk 0:03:19.5]} 20. f4 {[%clk 0:03:54.8]} 20... Rb8 {[%clk 0:03:06.1]} 21.
Kf2 {[%clk 0:03:51.8]} 21... b5 {[%clk 0:03:02.3]} 22. axb5 {[%clk 0:03:51.1]}
22... Rxb5 {[%clk 0:03:01.4]} 23. Ne5 {[%clk 0:03:45.6]} 23... Rb6 {[%clk
0:02:46.6]} 24. Nxc6 {[%clk 0:03:44.6]} 24... Rxc6 {[%clk 0:02:46.5]} 25. Rxa5
{[%clk 0:03:43.8]} 25... Rb8 {[%clk 0:02:41.2]} 26. Rd2 {[%clk 0:03:41]} 26...
Rcb6 {[%clk 0:02:32]} 27. f5 {[%clk 0:03:33.5]} 27... gxf5 {[%clk 0:02:22.5]}
28. Nxf5+ {[%clk 0:03:31.8]} 28... Bxf5 {[%clk 0:02:19]} 29. Rxf5 {[%clk
0:03:30.9]} 29... Rxb2 {[%clk 0:02:17.1]} 30. Rxb2 {[%clk 0:03:30.1]} 30... Rxb2
{[%clk 0:02:16.2]} 31. c4 {[%clk 0:03:28.1]} 31... h4 {[%clk 0:02:08.4]} 32. Ra5
{[%clk 0:03:14.2]} 32... e6 {[%clk 0:01:58.7]} 33. Ke3 {[%clk 0:03:06.9]} 33...
Rb3+ {[%clk 0:01:55]} 34. Bd3 {[%clk 0:03:05.2]} 34... Rb2 {[%clk 0:01:51.1]}
35. Be4 {[%clk 0:03:02.8]} 35... Bd8 {[%clk 0:01:46]} 36. Ra8 {[%clk 0:02:54.8]}
36... Bb6+ {[%clk 0:01:44.9]} 37. Kd3 {[%clk 0:02:49.9]} 37... f5 {[%clk
0:01:43.9]} 38. Bf3 {[%clk 0:02:48.6]} 38... e5 {[%clk 0:01:43]} 39. Bd5 {[%clk
0:02:29.8]} 39... e4+ {[%clk 0:01:39.7]} 40. Kc3 {[%clk 0:02:26.8]} 40... Rxg2
{[%clk 0:01:37.4]} 41. Rb8 {[%clk 0:02:25.5]} 41... Ba5+ {[%clk 0:01:25.7]} 42.
Kd4 {[%clk 0:02:24.4]} 42... Rg3 {[%clk 0:01:13.7]} 43. Ra8 {[%clk 0:02:17]}
43... Bb6+ {[%clk 0:01:09.7]} 44. c5 {[%clk 0:02:15.5]} 44... Bxc5+ {[%clk
0:01:09.2]} 45. Kxc5 {[%clk 0:02:14.4]} 45... Rxh3 {[%clk 0:01:07.9]} 46. Kd4
{[%clk 0:02:09.9]} 46... Rd3+ {[%clk 0:01:01.2]} 47. Ke5 {[%clk 0:02:08.7]}
47... h3 {[%clk 0:00:54.6]} 48. Ra7+ {[%clk 0:01:44.1]} 48... Kh6 {[%clk
0:00:47.8]} 49. Be6 {[%clk 0:01:41.5]} 49... Kg5 {[%clk 0:00:33.9]} 50. Rf7
{[%clk 0:01:28]} 50... h2 {[%clk 0:00:29.5]} 51. Rxf5+ {[%clk 0:01:25.7]} 51...
Kg6 {[%clk 0:00:28]} 52. Rf1 {[%clk 0:01:22.5]} 52... e3 {[%clk 0:00:23.6]} 53.
Bf5+ {[%clk 0:01:21.7]} 53... Kg5 {[%clk 0:00:20.3]} 54. Bxd3 {[%clk 0:01:20.7]}
1-0

[Event "Live Chess"]
[Site "Chess.com"]
[Date "2024.06.02"]
[Round "-"]
[White "JanMur7"]
[Black "matt1979"]
[Result "1-0"]
[WhiteElo "2268"]
[BlackElo "1396"]
[TimeControl "300"]
[EndTime "1:14:20 PDT"]
[Termination "JanMur7 won by resignation"]

1. c4 {[%clk 0:04:58.4]} 1... e6 {[%clk 0:04:57.2]} 2. Nc3 {[%clk 0:04:56.9]}
2... f5 {[%clk 0:04:55.7]} 3. d4 {[%clk 0:04:55.6]} 3... Nf6 {[%clk 0:04:54.2]}
4. g3 {[%clk 0:04:54.6]} 4... Bb4 {[%clk 0:04:47.8]} 5. Bg2 {[%clk 0:04:52.5]}
5... O-O {[%clk 0:04:43.9]} 6. Nf3 {[%clk 0:04:49.1]} 6... Ne4 {[%clk
0:04:39.9]} 7. Qc2 {[%clk 0:04:47.6]} 7... Bxc3+ {[%clk 0:04:38]} 8. bxc3 {[%clk
0:04:46.9]} 8... d6 {[%clk 0:04:33.7]} 9. O-O {[%clk 0:04:45.2]} 9... b6 {[%clk
0:04:29.2]} 10. Nd2 {[%clk 0:04:44]} 10... d5 {[%clk 0:04:17.3]} 11. cxd5 {[%clk
0:04:38.6]} 11... exd5 {[%clk 0:04:16.1]} 12. Nxe4 {[%clk 0:04:33.4]} 12... fxe4
{[%clk 0:04:14]} 13. c4 {[%clk 0:04:31.8]} 13... c6 {[%clk 0:04:10.6]} 14. Ba3
{[%clk 0:04:25.8]} 14... Rf6 {[%clk 0:04:04.4]} 15. cxd5 {[%clk 0:04:19.4]}
15... cxd5 {[%clk 0:04:01.1]} 16. Rac1 {[%clk 0:04:17.4]} 16... Bd7 {[%clk
0:03:48.7]} 17. Qc7 {[%clk 0:04:13.3]} 17... Nc6 {[%clk 0:03:37.6]} 18. Qxd8+
{[%clk 0:04:06.1]} 18... Rxd8 {[%clk 0:03:35.4]} 19. e3 {[%clk 0:04:02.1]} 19...
Rc8 {[%clk 0:03:24.7]} 20. Rc2 {[%clk 0:03:56.1]} 20... Rh6 {[%clk 0:03:19.6]}
21. Rfc1 {[%clk 0:03:52.5]} 21... Re8 {[%clk 0:03:06.9]} 22. h4 {[%clk
0:03:48.9]} 22... Na5 {[%clk 0:02:48.3]} 23. Bf1 {[%clk 0:03:40.2]} 23... Ba4
{[%clk 0:02:34.7]} 24. Rc8 {[%clk 0:03:35.8]} 24... Re6 {[%clk 0:02:29.4]} 25.
Rxe8+ {[%clk 0:03:32]} 25... Rxe8 {[%clk 0:02:28.2]} 26. Rc7 {[%clk 0:03:30.4]}
26... Nc6 {[%clk 0:02:20.5]} 27. Bh3 {[%clk 0:03:24.5]} 27... Rd8 {[%clk
0:01:58.5]} 28. Bd7 {[%clk 0:03:17.5]} 28... Rxd7 {[%clk 0:01:21.5]} 29. Rxd7
{[%clk 0:03:15.1]} 29... a6 {[%clk 0:01:08.2]} 30. Rxd5 {[%clk 0:03:12.1]} 30...
b5 {[%clk 0:01:05.4]} 31. Bc5 {[%clk 0:03:02.4]} 31... Bc2 {[%clk 0:01:01.8]}
32. Rd6 {[%clk 0:02:59.8]} 1-0

[Event "Live Chess"]
[Site "Chess.com"]
[Date "2024.06.02"]
[Round "-"]
[White "Ofirgh1234567890"]
[Black "jimwad"]
[Result "1-0"]
[WhiteElo "1766"]
[BlackElo "1316"]
[TimeControl "300"]
[EndTime "1:14:29 PDT"]
[Termination "Ofirgh1234567890 won by resignation"]

1. d4 {[%clk 0:04:58.9]} 1... d5 {[%clk 0:04:58.9]} 2. Bf4 {[%clk 0:04:57.8]}
2... Bf5 {[%clk 0:04:57.1]} 3. c4 {[%clk 0:04:56.8]} 3... c6 {[%clk 0:04:55.9]}
4. e3 {[%clk 0:04:55.4]} 4... Nf6 {[%clk 0:04:54.6]} 5. Nc3 {[%clk 0:04:55]}
5... e6 {[%clk 0:04:53.1]} 6. Nf3 {[%clk 0:04:54.5]} 6... Nbd7 {[%clk 0:04:51]}
7. h3 {[%clk 0:04:53.7]} 7... c5 {[%clk 0:04:48.5]} 8. Nh4 {[%clk 0:04:52.2]}
8... cxd4 {[%clk 0:04:46.1]} 9. exd4 {[%clk 0:04:50.8]} 9... Bg6 {[%clk
0:04:31.6]} 10. Nxg6 {[%clk 0:04:47.8]} 10... fxg6 {[%clk 0:04:30.6]} 11. Bd3
{[%clk 0:04:46.3]} 11... Be7 {[%clk 0:04:23.8]} 12. O-O {[%clk 0:04:42.4]} 12...
O-O {[%clk 0:04:22.3]} 13. cxd5 {[%clk 0:04:40.4]} 13... Nxd5 {[%clk 0:04:19.2]}
14. Nxd5 {[%clk 0:04:39.1]} 14... exd5 {[%clk 0:04:18.2]} 15. Bh2 {[%clk
0:04:35.6]} 15... Nf6 {[%clk 0:04:10.3]} 16. Re1 {[%clk 0:04:34.2]} 16... Bb4
{[%clk 0:04:00.4]} 17. Re2 {[%clk 0:04:25.5]} 17... Re8 {[%clk 0:03:55.8]} 18.
Qb3 {[%clk 0:04:20.6]} 18... Bd6 {[%clk 0:03:43]} 19. Rxe8+ {[%clk 0:04:15.6]}
19... Nxe8 {[%clk 0:03:41.6]} 20. Qxd5+ {[%clk 0:04:12.5]} 20... Kh8 {[%clk
0:03:37.5]} 21. Bxd6 {[%clk 0:04:10.7]} 21... Qxd6 {[%clk 0:03:35.5]} 22. Qxd6
{[%clk 0:04:08.7]} 22... Nxd6 {[%clk 0:03:34.4]} 23. Rc1 {[%clk 0:04:06.4]}
23... b6 {[%clk 0:03:32.5]} 24. Kf1 {[%clk 0:04:03.4]} 24... Rd8 {[%clk
0:03:29.1]} 25. Rc7 {[%clk 0:04:00.1]} 25... a5 {[%clk 0:03:26.2]} 26. Rc6
{[%clk 0:03:58.1]} 26... Nf5 {[%clk 0:03:18.8]} 27. Bxf5 {[%clk 0:03:51.9]}
27... gxf5 {[%clk 0:03:16.9]} 28. Rxb6 {[%clk 0:03:51.5]} 28... Rxd4 {[%clk
0:03:14.3]} 29. Rb8+ {[%clk 0:03:50.7]} 1-0

[Event "Live Chess"]
[Site "Chess.com"]
[Date "2024.06.02"]
[Round "-"]
[White "Isambard_Thomas"]
[Black "WelshTiger"]
[Result "0-1"]
[WhiteElo "2159"]
[BlackElo "2437"]
[TimeControl "300"]
[EndTime "1:14:41 PDT"]
[Termination "WelshTiger won by resignation"]

1. d4 {[%clk 0:04:59.6]} 1... Nf6 {[%clk 0:04:57.6]} 2. Nf3 {[%clk 0:04:59.2]}
2... e6 {[%clk 0:04:49.2]} 3. Bg5 {[%clk 0:04:58.7]} 3... c5 {[%clk 0:04:45.9]}
4. e3 {[%clk 0:04:58.2]} 4... b6 {[%clk 0:04:42.2]} 5. c3 {[%clk 0:04:57.4]}
5... Bb7 {[%clk 0:04:41.7]} 6. Bd3 {[%clk 0:04:56.4]} 6... Be7 {[%clk
0:04:41.2]} 7. Nbd2 {[%clk 0:04:55.7]} 7... d5 {[%clk 0:04:40.5]} 8. Qe2 {[%clk
0:04:54.8]} 8... Ne4 {[%clk 0:04:39]} 9. h4 {[%clk 0:04:52.5]} 9... h6 {[%clk
0:04:37.1]} 10. Bf4 {[%clk 0:04:51.5]} 10... Nd7 {[%clk 0:04:35.6]} 11. Bc2
{[%clk 0:04:49.8]} 11... Rc8 {[%clk 0:04:33.4]} 12. Nxe4 {[%clk 0:04:46.8]}
12... dxe4 {[%clk 0:04:32.3]} 13. Nd2 {[%clk 0:04:45.9]} 13... Nf6 {[%clk
0:04:23.7]} 14. Be5 {[%clk 0:04:42.6]} 14... cxd4 {[%clk 0:03:56.5]} 15. exd4
{[%clk 0:04:38.2]} 15... e3 {[%clk 0:03:54.4]} 16. fxe3 {[%clk 0:04:01.1]} 16...
Bd6 {[%clk 0:03:52.6]} 17. O-O {[%clk 0:03:53.4]} 17... Bxe5 {[%clk 0:03:49.9]}
18. dxe5 {[%clk 0:03:49.8]} 18... Nd5 {[%clk 0:03:47.9]} 19. Ne4 {[%clk
0:03:44.2]} 19... O-O {[%clk 0:03:41.8]} 20. Nd6 {[%clk 0:03:16.5]} 20... Rc7
{[%clk 0:03:32]} 21. Qd3 {[%clk 0:03:15.5]} 21... f5 {[%clk 0:03:30.5]} 22. e4
{[%clk 0:03:03.5]} 22... Ne7 {[%clk 0:03:24]} 23. exf5 {[%clk 0:02:53.7]} 23...
Nxf5 {[%clk 0:03:20.5]} 24. Bb3 {[%clk 0:02:22.2]} 24... Kh8 {[%clk 0:02:42.8]}
25. Bxe6 {[%clk 0:02:11.9]} 25... Nxh4 {[%clk 0:02:40.3]} 26. Rxf8+ {[%clk
0:02:06.1]} 26... Qxf8 {[%clk 0:02:39.5]} 27. Nxb7 {[%clk 0:01:52.2]} 27... Rxb7
{[%clk 0:02:36.2]} 28. Qe4 {[%clk 0:01:51.3]} 28... Qe7 {[%clk 0:02:17.5]} 29.
Rf1 {[%clk 0:01:35.1]} 29... Rc7 {[%clk 0:02:15.2]} 30. Qxh4 {[%clk 0:01:18.4]}
30... Qxh4 {[%clk 0:02:12]} 0-1